[Event "Turkey IS Bank Super League 2017"]
[Site "Darica-Kocaeli"]
[Date "2017.08.03"]
[Round "8"]
[White "Sade, Defne"]
[Black "Ozbay, Ece"]
[Result "1-0"]
[ECO "B44"]
[WhiteElo "1654"]
[BlackElo "1970"]
[Annotator "NA"]
[PlyCount "79"]
[EventType "team-tourn"]
[EventCountry "TUR"]
[TimeControl "40/5400+30:1800+30"]

1. e4 {[%emt 0:00:30]} c5 {[%emt 0:02:00]} 2. Nf3 {[%emt 0:00:30]} e6 {[%emt 0:00:30]} 3. d4 {[%emt 0:00:00]} cxd4 {[%emt 0:00:00]} 4. Nxd4 {[%emt 0:00:00]} Nc6 {[%emt 0:00:00]} 5. c4 {[%emt 0:00:30]} Nf6 {[%emt 0:00:00]} 6. Nc3 {[%emt 0:00:30]} Bb4 {[%emt 0:00:00]} 7. Nxc6 {[%emt 0:00:00]} bxc6 {[%emt 0:00:00]} 8. Bd3 {[%emt 0:00:00]} e5 {[%emt 0:00:00]} 9. O-O {[%emt 0:00:30]} O-O {[%emt 0:00:00]} 10. Be3 {[%emt 0:01:30]} d6 {[%emt 0:02:00]} 11. a3 {[%emt 0:00:30]} Ba5 {[%emt 0:02:30]} 12. b4 {[%emt 0:03:30]} Bb6 {[%emt 0:04:30]} 13. h3 {[%emt 0:04:30]} Qe7 {[%emt 0:05:30]} 14. Qf3 {[%emt 0:05:30]} h6 {[%emt 0:00:30]} 15. Rfd1 {[%emt 0:04:30]} Bb7 {[%emt 0:04:30]} 16. Ne2 {[%emt 0:06:30]} d5 {[%emt 0:03:30]} 17. c5 {[%emt 0:04:30]} Bc7 {[%emt 0:01:30]} 18. Ng3 {[%emt 0:00:30]} Bc8 {[%emt 0:27:30]} 19. Bc2 {[%emt 0:02:30]} dxe4 {[%emt 0:07:30]} 20. Nxe4 {[%emt 0:08:30]} Nd5 {[%emt 0:10:30]} 21. Nd6 {[%emt 0:26:30]} Bd7 {[%emt 0:14:56]} 22. Bb3 {[%emt 0:04:30]} Nf6 {[%emt 0:02:30]} 23. Qg3 {[%emt 0:04:30]} Nh5 {[%emt 0:01:22]} 24. Qg6 {[%emt 0:01:30]} Bxd6 {[%emt 0:07:49]} 25. cxd6 {[%emt 0:05:09]} Qh4 {[%emt 0:00:02]} 26. Bxh6 {[%emt 0:02:20]} Rae8 {[%emt 0:03:49]} 27. Bg5 {[%emt 0:01:38]} Nf4 {[%emt 0:00:02]} 28. Qxf7+ {[%emt 0:06:14]} Rxf7 {[%emt 0:00:20]} 29. Bxf7+ {[%emt 0:00:35]} Kxf7 {[%emt 0:00:30]} 30. Bxh4 {[%emt 0:00:00]} Nd5 {[%emt 0:00:00]} 31. Rac1 {[%emt 0:01:12]} Ke6 {[%emt 0:00:21]} 32. Be7 {[%emt 0:00:43]} Ra8 {[%emt 0:01:34]} 33. Rc5 {[%emt 0:00:51]} a6 {[%emt 0:00:13]} 34. Re1 {[%emt 0:02:01]} Kf5 {[%emt 0:00:57]} 35. g4+ {[%emt 0:03:07]} Ke6 {[%emt 0:00:02]} 36. f4 {[%emt 0:00:54]} Nxf4 {[%emt 0:00:19]} 37. Rexe5+ {[%emt 0:00:42]} Kf7 {[%emt 0:00:03]} 38. Rf5+ {[%emt 0:00:06]} Bxf5 {[%emt 0:00:20]} 39. Rxf5+ {[%emt 0:00:06]} Ke6 {[%emt 0:00:30]} 40. Rxf4 {[%emt 0:00:00]} 1-0